fUSD/lending_fUSD_20240116
["ID","MTS","AMOUNT","RATE_DAILY","PERIOD"]
[311737186,1705371042510,-500.0,0.00022171,2]
[311737188,1705371042520,-548.6,0.00022171,2]
[311737190,1705371042530,-689.51,0.00022171,2]
[311737193,1705371042540,-500.0,0.00022171,2]
[311737195,1705371042550,-1528.54,0.00022171,2]
[311737197,1705371042559,-3480.48,0.00022171,2]
[311737199,1705371042568,-500.0,0.00022171,2]
[311737201,1705371042578,-500.0,0.00022171,2]
[311737203,1705371042587,-500.0,0.00022171,2]
[311737205,1705371042598,-1298.88,0.00022171,2]
[311737207,1705371042607,-500.0,0.00022171,2]
[311737209,1705371042617,-500.0,0.00022171,2]
[311737211,1705371042627,-272.82,0.00022171,2]
[311737213,1705371042637,-500.0,0.00022171,2]
[311737215,1705371042646,-500.0,0.00022171,2]
[311737217,1705371042656,-500.0,0.00022171,2]
[311737219,1705371042667,-500.0,0.00022171,2]
[311737221,1705371042680,-500.0,0.00022171,2]
[311737224,1705371042690,-768.79,0.00022171,2]
[311737226,1705371042699,-500.0,0.00022171,2]
[311737228,1705371042710,-2709.02,0.00022171,2]
[311737230,1705371042721,-522.4147955,0.00022171,2]
[311737232,1705371042730,-500.0,0.00022171,2]
[311737234,1705371042740,-646.93,0.00022171,2]
[311737236,1705371042751,-500.0,0.00022171,2]
[311737238,1705371042762,-500.0,0.00022171,2]
[311737240,1705371042772,-670.62,0.00022171,2]
[311737242,1705371042781,-500.0,0.00022171,2]
[311737244,1705371042791,-500.0,0.00022171,2]
[311737246,1705371042800,-502.78667855,0.00022171,2]
[311737248,1705371042810,-204.58380832,0.00022171,2]
[311737250,1705371042820,-503.36948214,0.00022171,2]
[311737253,1705371042830,-1135.37,0.00022171,2]
[311737255,1705371042839,-500.0,0.00022171,2]
[311737256,1705371042849,-534.1,0.00022171,2]
[311737258,1705371042860,-500.0,0.00022171,2]
[311737260,1705371042870,-500.0,0.00022171,2]
[311737263,1705371042881,-405.01260262,0.00022171,2]
[311737265,1705371042893,-500.0,0.00022171,2]
[311737267,1705371042903,-60415.4569674,0.00022172,2]
[311737269,1705371042913,-26529.8553017,0.00022172,2]
[311737271,1705371042923,-37253.633073,0.00022172,2]
[311737273,1705371042933,-2631.6179027,0.00022172,2]
[311737275,1705371042942,-14053.3652071,0.00022172,2]
[311737277,1705371042952,-5844.8901358,0.00022172,2]
[311737279,1705371042962,-2313.83719117,0.00022173,2]
[311737281,1705371042972,-2251.09323965,0.00022174,2]
[311737284,1705371042982,-155.2592931,0.00022174,2]
[311737286,1705371042992,-155.25191923,0.00022174,2]
[311737288,1705371043002,-710.86,0.00022175,2]
[311737290,1705371043011,-838.39,0.00022175,2]
[311737292,1705371043021,-1096.15,0.00022175,2]
[311737294,1705371043030,-686.87,0.00022175,2]
[311737296,1705371043040,-1000.96,0.00022175,2]
[311737298,1705371043049,-530.95,0.00022175,2]
[311737300,1705371043062,-515.95964156,0.00022175,2]
[311737302,1705371043071,-774.22,0.00022175,2]
[311737303,1705371043080,-634.55,0.00022175,2]
[311737305,1705371043090,-718.11,0.00022175,2]
[311737307,1705371043099,-500.0,0.00022175,2]
[311737308,1705371043109,-635.41,0.00022175,2]
[311737310,1705371043120,-270.86989686,0.00022175,2]
[311737312,1705371043129,-500.0,0.00022175,2]
[311737314,1705371043139,-1440.26,0.00022175,2]
[311737316,1705371043149,-590.6,0.00022175,2]
[311737318,1705371043159,-500.0,0.00022175,2]
[311737319,1705371043168,-997.93,0.00022175,2]
[311737322,1705371043177,-500.0,0.00022175,2]
[311737325,1705371043187,-876.05,0.00022175,2]
[311737328,1705371043197,-594.59,0.00022175,2]
[311737330,1705371043207,-499.99,0.00022175,2]
[311737332,1705371043217,-500.0,0.00022175,2]
[311737334,1705371043226,-942.45,0.00022175,2]
[311737335,1705371043235,-582.34,0.00022175,2]
[311737337,1705371043245,-500.0,0.00022175,2]
[311737340,1705371043255,-1230.65,0.00022175,2]
[311737342,1705371043265,-540.77,0.00022175,2]
[311737345,1705371043274,-500.0,0.00022175,2]
[311737346,1705371043284,-1818.47,0.00022175,2]
[311737348,1705371043293,-500.0,0.00022175,2]
[311737350,1705371043303,-500.0,0.00022175,2]
[311737352,1705371043313,-500.0,0.00022175,2]
[311737353,1705371043323,-638.66,0.00022175,2]
[311737355,1705371043333,-500.0,0.00022175,2]
[311737357,1705371043343,-896.35,0.00022175,2]
[311737359,1705371043353,-934.0,0.00022175,2]
[311737361,1705371043362,-500.0,0.00022175,2]
[311737363,1705371043372,-710.89,0.00022175,2]
[311737364,1705371043381,-1056.33,0.00022175,2]
[311737366,1705371043391,-500.0,0.00022175,2]
[311737368,1705371043400,-500.0,0.00022175,2]
[311737370,1705371043410,-770.22,0.00022175,2]
[311737371,1705371043419,-1009.22,0.00022175,2]
[311737373,1705371043429,-500.0,0.00022175,2]
[311737375,1705371043439,-672.86,0.00022175,2]
[311737377,1705371043448,-643.57,0.00022175,2]
[311737378,1705371043459,-1169.95,0.00022175,2]
[311737380,1705371043468,-1262.83,0.00022175,2]
[311737382,1705371043478,-615.54,0.00022175,2]
[311737384,1705371043487,-585.26,0.00022175,2]
[311737386,1705371043497,-500.0,0.00022175,2]
[311737388,1705371043506,-897.78,0.00022175,2]
[311737389,1705371043515,-677.65,0.00022175,2]
[311737391,1705371043525,-374.83188157,0.00022175,2]
[311737393,1705371043535,-741.72,0.00022175,2]
[311737395,1705371043544,-2126.51,0.00022175,2]
[311737397,1705371043555,-1673.21,0.00022175,2]
[311737399,1705371043564,-500.0,0.00022175,2]
[311737400,1705371043574,-2915.06,0.00022175,2]
[311737402,1705371043583,-875.05,0.00022175,2]
[311737404,1705371043593,-1035.7,0.00022175,2]
[311737406,1705371043602,-1242.14,0.00022175,2]
[311737408,1705371043612,-781.31,0.00022175,2]
[311737410,1705371043621,-2836.35,0.00022175,2]
[311737412,1705371043630,-500.0,0.00022175,2]
[311737413,1705371043640,-3601.52,0.00022175,2]
[311737415,1705371043650,-2832.34,0.00022175,2]
[311737417,1705371043659,-4021.76,0.00022175,2]
[311737419,1705371043669,-1453.74,0.00022175,2]
[311737421,1705371043678,-2103.41,0.00022175,2]
[311737423,1705371043688,-500.0,0.00022175,2]
[311737425,1705371043697,-1433.32,0.00022175,2]
[311737426,1705371043708,-1775.42,0.00022175,2]
[311737428,1705371043718,-500.0,0.00022175,5]
[311737430,1705371043727,-923.7,0.00022175,2]
[311737432,1705371043736,-1155.15,0.00022175,2]
[311737434,1705371043746,-3597.87,0.00022175,2]
[311737436,1705371043755,-529.06,0.00022175,2]
[311737438,1705371043764,-3669.98,0.00022175,2]
[311737439,1705371043774,-625.97,0.00022175,2]
[311737441,1705371043784,-2607.23,0.00022175,2]
[311737443,1705371043793,-1980.73,0.00022175,2]
[311737445,1705371043803,-4402.37,0.00022175,2]
[311737447,1705371043812,-1126.59,0.00022175,2]
[311737449,1705371043821,-500.0,0.00022175,2]
[311737450,1705371043831,-2989.59,0.00022175,2]
[311737452,1705371043840,-500.0,0.00022175,2]
[311737454,1705371043849,-2254.51,0.00022175,2]
[311737456,1705371043859,-500.0,0.00022175,2]
[311737458,1705371043868,-500.0,0.00022175,2]
[311737460,1705371043878,-1943.37,0.00022175,2]
[311737462,1705371043887,-500.0,0.00022175,2]
[311737463,1705371043896,-2908.33,0.00022175,2]
[311737465,1705371043906,-500.0,0.00022175,2]
[311737467,1705371043916,-500.0,0.00022175,2]
[311737469,1705371043925,-1497.41,0.00022175,2]
[311737471,1705371043935,-500.0,0.00022175,2]
[311737472,1705371043945,-754.02,0.00022175,2]
[311737474,1705371043955,-893.27,0.00022175,2]
[311737476,1705371043965,-1304.27,0.00022175,2]
[311737479,1705371043975,-1656.47,0.00022175,2]
[311737481,1705371043986,-991.69,0.00022175,2]
[311737483,1705371043996,-602.27,0.00022175,2]
[311737484,1705371044006,-4284.42,0.00022175,2]
[311737485,1705371044016,-4126.07,0.00022175,2]
[311737486,1705371044025,-1355.88,0.00022175,2]
[311737487,1705371044035,-1442.14,0.00022175,2]
[311737488,1705371044044,-1248.21,0.00022175,2]
[311737489,1705371044053,-785.79,0.00022175,2]
[311737490,1705371044063,-500.0,0.00022175,2]
[311737491,1705371044072,-977.07,0.00022175,2]
[311737492,1705371044082,-1613.67,0.00022175,2]
[311737493,1705371044091,-651.38,0.00022175,2]
[311737494,1705371044101,-3136.51,0.00022175,2]
[311737496,1705371044110,-3071.82,0.00022175,2]
[311737497,1705371044119,-789.35,0.00022175,2]
[311737499,1705371044129,-1948.33,0.00022175,2]
[311737501,1705371044138,-6519.48,0.00022175,2]
[311737503,1705371044147,-296.23864198,0.00022175,2]
[311737505,1705371044157,-1128.94,0.00022175,2]
[311737507,1705371044166,-500.0,0.00022175,2]
[311737509,1705371044176,-500.0,0.00022175,2]
[311737511,1705371044185,-685.41,0.00022175,2]
[311737513,1705371044194,-756.1,0.00022175,2]
[311737515,1705371044204,-787.54,0.00022175,2]
[311737518,1705371044215,-500.0,0.00022175,2]
[311737520,1705371044224,-702.57,0.00022175,2]
[311737522,1705371044236,-6143.49,0.00022175,2]
[311737524,1705371044244,-2955.64,0.00022175,2]
[311737526,1705371044253,-6649.44,0.00022175,2]
[311737528,1705371044263,-3165.5,0.00022175,2]
[311737530,1705371044273,-929.91,0.00022175,2]
[311737532,1705371044282,-1618.8,0.00022175,2]
[311737534,1705371044291,-500.95945279,0.00022176,2]
[311737536,1705371044301,-502.49775401,0.00022176,2]
[311737538,1705371044310,-1126.17748716,0.00022176,2]
[311737540,1705371044320,-502.25938473,0.00022176,2]
[311737542,1705371044329,-467.0702229,0.00022176,2]
[311737545,1705371044349,-500.59102952,0.00022176,2]
[311737547,1705371044358,-613.81,0.00022176,2]
[311737549,1705371044368,-500.0,0.00022176,2]
[311737551,1705371044378,-618.85,0.00022176,2]
[311737553,1705371044387,-500.0,0.00022176,2]
[311737555,1705371044397,-511.41606142,0.00022176,2]
[311737557,1705371044406,-500.0,0.00022176,2]
[311737559,1705371044416,-723.49,0.00022176,2]
[311737561,1705371044425,-500.0,0.00022176,2]
[311737563,1705371044435,-535.2797307,0.00022176,2]
[311737565,1705371044444,-500.0,0.00022176,2]
[311737567,1705371044454,-500.0,0.00022176,2]
[311737569,1705371044466,-500.0,0.00022176,2]
[311737571,1705371044476,-500.0,0.00022176,2]
[311737573,1705371044485,-500.0,0.00022176,2]
[311737575,1705371044494,-500.0,0.00022176,2]
[311737577,1705371044505,-500.0,0.00022176,2]
[311737579,1705371044514,-316.30478463,0.00022176,2]
[311737581,1705371044524,-513.74,0.00022176,2]
[311737583,1705371044533,-500.0,0.00022176,2]
[311737585,1705371044543,-500.0,0.00022176,2]
[311737587,1705371044553,-588.87146392,0.00022176,2]
[311737589,1705371044564,-500.0,0.00022176,2]
[311737591,1705371044573,-571.15,0.00022176,2]
[311737594,1705371044583,-500.0,0.00022176,2]
[311737596,1705371044592,-500.0,0.00022176,2]
[311737598,1705371044601,-734.92,0.00022176,2]
[311737600,1705371044611,-500.0,0.00022176,2]
[311737602,1705371044620,-657.51,0.00022176,2]
[311737604,1705371044630,-626.66,0.00022176,2]
[311737606,1705371044640,-509.26,0.00022176,2]
[311737608,1705371044649,-500.0,0.00022176,2]
[311737610,1705371044658,-500.0,0.00022176,2]
[311737612,1705371044670,-635.32,0.00022176,2]
[311737614,1705371044681,-500.0,0.00022176,2]
[311737616,1705371044691,-500.0,0.00022176,2]
[311737618,1705371044700,-666.82,0.00022176,2]
[311737620,1705371044712,-500.0,0.00022176,2]
[311737622,1705371044721,-531.24,0.00022176,2]
[311737624,1705371044730,-500.0,0.00022176,2]
[311737626,1705371044739,-722.35,0.00022176,2]
[311737628,1705371044748,-500.0,0.00022176,2]
[311737630,1705371044758,-500.0,0.00022176,2]
[311737632,1705371044768,-500.0,0.00022176,2]
[311737634,1705371044778,-500.0,0.00022176,2]
[311737636,1705371044788,-656.87,0.00022176,2]
[311737638,1705371044798,-500.0,0.00022176,2]
[311737640,1705371044807,-553.61,0.00022176,2]
[311737642,1705371044816,-580.5,0.00022176,2]
[311737644,1705371044825,-500.0,0.00022176,2]
[311737646,1705371044835,-500.0,0.00022176,2]
[311737648,1705371044844,-500.0,0.00022176,2]
[311737650,1705371044856,-500.0,0.00022176,2]
[311737652,1705371044865,-500.0,0.00022176,2]
[311737654,1705371044874,-500.0,0.00022176,2]
[311737656,1705371044884,-500.0,0.00022176,2]
[311737658,1705371044893,-672.36,0.00022176,2]
[311737661,1705371044903,-500.0,0.00022176,2]
[311737662,1705371044912,-500.0,0.00022176,2]
[311737665,1705371044921,-977.5,0.00022176,2]
[311737667,1705371044931,-503.3,0.00022176,2]
[311737669,1705371044941,-500.0,0.00022176,2]
[311737671,1705371044950,-500.0,0.00022176,2]
[311737673,1705371044961,-500.0,0.00022176,2]
[311737675,1705371044970,-500.0,0.00022176,2]
[311737677,1705371044979,-500.0,0.00022176,2]
[311737679,1705371044989,-500.0,0.00022176,2]
[311737681,1705371044998,-500.0,0.00022176,2]
[311737683,1705371045007,-507.36,0.00022176,2]
[311737716,1705371045299,-500.0,0.00022176,2]
[311737718,1705371045309,-500.0,0.00022176,2]
[311737720,1705371045319,-500.0,0.00022176,2]
[311737722,1705371045328,-500.0,0.00022176,2]
[311737724,1705371045337,-500.0,0.00022176,2]
[311737726,1705371045346,-500.0,0.00022176,2]
[311737728,1705371045355,-545.66,0.00022176,2]
[311737730,1705371045364,-508.53,0.00022176,2]
[311737732,1705371045373,-500.0,0.00022176,2]
[311737734,1705371045383,-500.0,0.00022176,2]
[311737736,1705371045392,-614.20111649,0.00022176,2]
[311737738,1705371045401,-954.25,0.00022176,2]
[311737740,1705371045411,-500.0,0.00022176,2]
[311737742,1705371045420,-608.58950182,0.00022176,2]
[311737744,1705371045430,-500.0,0.00022176,2]
[311737746,1705371045439,-310.88504408,0.00022176,2]
[311737748,1705371045448,-985.37,0.00022176,2]
[311737750,1705371045458,-191.85236811,0.00022176,2]
[311737752,1705371045469,-672.56,0.00022176,2]
[311737754,1705371045478,-593.56,0.00022176,2]
[311737756,1705371045487,-500.0,0.00022176,2]
[311737758,1705371045497,-500.0,0.00022176,2]
[311737760,1705371045506,-645.20030504,0.00022176,2]
[311737762,1705371045515,-500.0,0.00022176,2]
[311737764,1705371045524,-370.03641035,0.00022176,2]
[311737766,1705371045535,-500.0,0.00022176,2]
[311737768,1705371045545,-500.0,0.00022176,2]
[311737770,1705371045553,-500.0,0.00022176,2]
[311737772,1705371045563,-500.0,0.00022176,2]
[311737774,1705371045573,-500.0,0.00022176,2]
[311737776,1705371045582,-522.97,0.00022176,2]
[311737778,1705371045592,-500.0,0.00022176,2]
[311737780,1705371045601,-806.03,0.00022176,2]
[311737782,1705371045611,-500.0,0.00022176,2]
[311737784,1705371045620,-615.85,0.00022176,2]
[311737786,1705371045630,-500.0,0.00022176,2]
[311737788,1705371045639,-500.0,0.00022176,2]
[311737790,1705371045649,-500.0,0.00022176,2]
[311737792,1705371045658,-554.43447445,0.00022176,2]
[311737794,1705371045667,-500.0,0.00022176,2]
[311737796,1705371045676,-705.72,0.00022176,2]
[311737798,1705371045686,-500.0,0.00022176,2]
[311737800,1705371045695,-500.0,0.00022176,2]
[311737802,1705371045704,-893.02,0.00022176,2]
[311737804,1705371045717,-1345.18,0.00022176,2]
[311737806,1705371045726,-500.0,0.00022176,2]
[311737808,1705371045735,-599.24,0.00022176,2]
[311737810,1705371045746,-606.06,0.00022176,2]
[311737812,1705371045756,-575.07,0.00022176,2]
[311737814,1705371045765,-1346.77,0.00022176,2]
[311737816,1705371045775,-500.0,0.00022176,2]
[311737818,1705371045785,-584.87098994,0.00022176,2]
[311737820,1705371045795,-392.70905694,0.00022176,2]
[311737822,1705371045804,-1172.99,0.00022176,2]
[311737824,1705371045814,-500.0,0.00022176,2]
[311737827,1705371045823,-500.0,0.00022176,2]
[311737828,1705371045833,-500.0,0.00022176,2]
[311737830,1705371045842,-500.0,0.00022176,2]
[311737833,1705371045855,-500.0,0.00022176,2]
[311737835,1705371045864,-500.0,0.00022176,2]
[311737837,1705371045873,-500.0,0.00022176,2]
[311737839,1705371045883,-500.0,0.00022176,2]
[311737841,1705371045892,-1188.36,0.00022176,2]
[311737843,1705371045902,-500.0,0.00022176,2]
[311737845,1705371045911,-500.0,0.00022176,2]
[311737847,1705371045920,-520.04,0.00022176,2]
[311737849,1705371045930,-841.55,0.00022176,2]
[311737851,1705371045939,-993.49,0.00022176,2]
[311737853,1705371045950,-575.71,0.00022176,2]
[311737855,1705371045962,-500.0,0.00022176,2]
[311737857,1705371045972,-500.0,0.00022176,2]
[311737859,1705371045982,-520.07,0.00022176,2]
[311737861,1705371045991,-500.0,0.00022176,2]
[311737863,1705371046002,-500.0,0.00022176,2]
[311737865,1705371046010,-984.77,0.00022176,2]
[311737867,1705371046019,-500.0,0.00022176,2]
[311737869,1705371046029,-500.0,0.00022176,2]
[311737871,1705371046038,-1337.8,0.00022176,2]
[311737873,1705371046047,-500.0,0.00022176,2]
[311737875,1705371046057,-500.0,0.00022176,2]
[311737877,1705371046067,-500.0,0.00022176,2]
[311737879,1705371046076,-2308.37,0.00022176,2]
[311737881,1705371046086,-1210.91,0.00022176,2]
[311737883,1705371046096,-533.0615829,0.00022176,2]
[311737885,1705371046106,-500.0,0.00022176,2]
[311737887,1705371046116,-500.0,0.00022176,2]
[311737889,1705371046125,-788.42,0.00022176,2]
[311737891,1705371046134,-500.0,0.00022176,2]
[311737893,1705371046144,-500.0,0.00022176,2]
[311737895,1705371046153,-571.16,0.00022176,2]
[311737897,1705371046163,-790.93,0.00022176,2]
[311737899,1705371046172,-500.0,0.00022176,2]
[311737900,1705371046181,-1245.74,0.00022176,2]
[311737901,1705371046190,-529.01,0.00022176,2]
[311737903,1705371046200,-796.87,0.00022176,2]
[311737905,1705371046211,-500.0,0.00022176,2]
[311737907,1705371046220,-603.00022994,0.00022176,2]
[311737909,1705371046229,-500.0,0.00022176,2]
[311737911,1705371046239,-1833.77,0.00022176,2]
[311737914,1705371046248,-500.0,0.00022176,2]
[311737916,1705371046257,-500.0,0.00022176,2]
[311737919,1705371046267,-722.16,0.00022176,2]
[311737923,1705371046277,-500.0,0.00022176,2]
[311737925,1705371046286,-500.0,0.00022176,2]
[311737927,1705371046295,-500.0,0.00022176,2]
[311737929,1705371046305,-675.23,0.00022176,2]
[311737931,1705371046314,-538.82211664,0.00022176,2]
[311737933,1705371046323,-295.74,0.00022176,2]
[311737935,1705371046332,-500.0,0.00022176,2]
[311737937,1705371046341,-963.57,0.00022176,2]
[311737939,1705371046351,-1051.67,0.00022176,2]
[311737941,1705371046360,-505.69840945,0.00022176,2]
[311737944,1705371046370,-500.0,0.00022176,2]
[311737946,1705371046379,-500.0,0.00022176,2]
[311737948,1705371046389,-500.0,0.00022176,2]
[311737950,1705371046398,-500.0,0.00022176,2]
[311737952,1705371046408,-500.0,0.00022176,2]
[311737954,1705371046417,-648.69,0.00022176,2]
[311737956,1705371046426,-532.82822996,0.00022176,2]
[311737958,1705371046435,-513.48135767,0.00022176,2]
[311737960,1705371046444,-500.0,0.00022176,2]
[311737962,1705371046453,-645.49,0.00022176,2]
[311737964,1705371046464,-500.0,0.00022176,2]
[311737966,1705371046474,-500.0,0.00022176,2]
[311737968,1705371046483,-513.42,0.00022176,2]
[311737970,1705371046492,-605.12,0.00022176,2]
[311737972,1705371046503,-500.0,0.00022176,2]
[311737974,1705371046512,-500.0,0.00022176,2]
[311737976,1705371046521,-500.0,0.00022176,2]
[311737978,1705371046531,-500.0,0.00022176,2]
[311737980,1705371046540,-500.0,0.00022176,2]
[311737982,1705371046550,-500.0,0.00022176,2]
[311737984,1705371046559,-500.0,0.00022176,2]
[311737986,1705371046570,-958.9,0.00022176,2]
[311737988,1705371046579,-500.0,0.00022176,2]
[311737990,1705371046588,-737.17,0.00022176,2]
[311737992,1705371046598,-693.32,0.00022176,2]
[311737994,1705371046607,-728.4,0.00022176,2]
[311737996,1705371046618,-1825.06,0.00022176,2]
[311737999,1705371046627,-708.58,0.00022176,2]
[311738001,1705371046637,-500.0,0.00022176,2]
[311738003,1705371046646,-500.0,0.00022176,2]
[311738005,1705371046656,-500.0,0.00022176,2]
[311738007,1705371046669,-500.0,0.00022176,2]
[311738009,1705371046678,-500.0,0.00022176,2]
[311738011,1705371046687,-500.0,0.00022176,2]
[311738013,1705371046696,-857.5,0.00022176,2]
[311738014,1705371046708,-1089.95,0.00022176,2]
[311738017,1705371046718,-651.14,0.00022176,2]
[311738018,1705371046728,-500.0,0.00022176,2]
[311738020,1705371046738,-500.0,0.00022176,2]
[311738023,1705371046747,-823.21,0.00022176,2]
[311738025,1705371046757,-652.55,0.00022176,2]
[311738027,1705371046766,-500.0,0.00022176,2]
[311738029,1705371046776,-500.0,0.00022176,2]
[311738031,1705371046786,-500.0,0.00022176,2]
[311738033,1705371046796,-522.35610349,0.00022176,2]
[311738035,1705371046805,-500.0,0.00022176,2]
[311738037,1705371046815,-513.14,0.00022176,2]
[311738039,1705371046824,-1350.46,0.00022176,2]
[311738041,1705371046834,-622.08,0.00022176,2]
[311738043,1705371046844,-500.0,0.00022176,2]
[311738045,1705371046855,-500.0,0.00022176,2]
[311738047,1705371046864,-500.0,0.00022176,2]
[311738049,1705371046874,-500.0,0.00022176,2]
[311738051,1705371046883,-219.21424101,0.00022176,2]
[311738053,1705371046893,-579.29,0.00022176,2]
[311738055,1705371046902,-1228.55,0.00022176,2]
[311738057,1705371046911,-500.0,0.00022176,2]
[311738059,1705371046921,-500.0,0.00022176,2]
[311738061,1705371046931,-656.72,0.00022176,2]
[311738063,1705371046941,-1061.39,0.00022176,2]
[311738065,1705371046950,-970.16,0.00022176,2]
[311738068,1705371046960,-500.0,0.00022176,2]
[311738071,1705371046978,-500.0,0.00022176,2]
[311738073,1705371046990,-550.52,0.00022176,2]
[311738075,1705371047000,-1019.16,0.00022176,2]
[311738077,1705371047010,-500.0,0.00022176,2]
[311738079,1705371047019,-500.0,0.00022176,2]
[311738081,1705371047029,-500.0,0.00022176,2]
[311738083,1705371047039,-500.0,0.00022176,2]
[311738085,1705371047048,-500.0,0.00022176,2]
[311738087,1705371047058,-500.0,0.00022176,2]
[311738089,1705371047067,-512.12145802,0.00022176,2]
[311738091,1705371047076,-759.87,0.00022176,2]
[311738093,1705371047086,-848.44,0.00022176,2]
[311738095,1705371047096,-851.73,0.00022176,2]
[311738098,1705371047105,-519.9,0.00022176,2]
[311738100,1705371047115,-500.0,0.00022176,2]
[311738102,1705371047124,-500.0,0.00022176,2]
[311738104,1705371047134,-601.17,0.00022176,2]
[311738106,1705371047144,-555.97798451,0.00022176,2]
[311738108,1705371047153,-611.87,0.00022176,2]
[311738110,1705371047163,-500.0,0.00022176,2]
[311738112,1705371047173,-500.0,0.00022176,2]
[311738114,1705371047183,-759.69,0.00022176,2]
[311738116,1705371047192,-682.28,0.00022176,2]
[311738118,1705371047201,-500.0,0.00022176,2]
[311738120,1705371047212,-500.0,0.00022176,2]
[311738123,1705371047222,-861.72,0.00022176,2]
[311738125,1705371047232,-500.0,0.00022176,2]
[311738127,1705371047241,-500.0,0.00022176,2]
[311738129,1705371047251,-500.0,0.00022176,2]
[311738131,1705371047260,-500.0,0.00022176,2]
[311738133,1705371047270,-500.0,0.00022176,2]
[311738135,1705371047280,-500.0,0.00022176,2]
[311738137,1705371047290,-518.96,0.00022176,2]
[311738139,1705371047299,-500.0,0.00022176,2]
[311738141,1705371047309,-500.0,0.00022176,2]
[311738143,1705371047320,-500.0,0.00022176,2]
[311738145,1705371047330,-960.28,0.00022176,2]
[311738147,1705371047341,-1155.22,0.00022176,2]
[311738149,1705371047350,-500.0,0.00022176,2]
[311738152,1705371047360,-500.0,0.00022176,2]
[311738154,1705371047370,-500.0,0.00022176,2]
[311738156,1705371047380,-500.0,0.00022176,2]
[311738158,1705371047389,-1417.18,0.00022176,2]
[311738160,1705371047399,-500.0,0.00022176,2]
[311738162,1705371047408,-500.0,0.00022176,2]
[311738164,1705371047418,-1341.19,0.00022176,2]
[311738166,1705371047427,-500.0,0.00022176,2]
[311738168,1705371047437,-500.0,0.00022176,2]
[311738170,1705371047446,-500.0,0.00022176,2]
[311738172,1705371047456,-775.52,0.00022176,2]
[311738174,1705371047466,-500.0,0.00022176,2]
[311738176,1705371047475,-500.0,0.00022176,2]
[311738178,1705371047485,-1020.1,0.00022176,2]
[311738180,1705371047494,-500.0,0.00022176,2]
[311738182,1705371047504,-1049.59,0.00022176,2]
[311738184,1705371047513,-928.01,0.00022176,2]
[311738186,1705371047523,-1223.51,0.00022176,2]
[311738188,1705371047533,-500.0,0.00022176,2]
[311738190,1705371047542,-500.0,0.00022176,2]
[311738192,1705371047552,-1293.62,0.00022176,2]
[311738194,1705371047562,-613.57,0.00022176,2]
[311738196,1705371047572,-1490.67,0.00022176,2]
[311738199,1705371047581,-500.0,0.00022176,2]
[311738201,1705371047591,-1114.7,0.00022176,2]
[311738203,1705371047601,-500.0,0.00022176,2]
[311738205,1705371047617,-338.4076835,0.00022176,2]
[311738207,1705371047646,-500.0,0.00022176,2]
[311738209,1705371047656,-597.14,0.00022176,2]
[311738226,1705371047807,-631.28,0.00022176,2]